bitfinex-derivatives/quotes_ETHF0:USTF0_20250213
["timestamp","ask_amount","ask_price","bid_price","bid_amount"]
[1739408725355,0.73342,2726.8,2726.7,0.00550005]
[1739408725554,0.73342,2726.8,2726.7,0.73895005]
[1739408725853,1.665,2726.9,2726.8,0.73342]
[1739408727063,1.665,2726.9,2726.7,0.73893005]
[1739408727757,0.00550005,2727.2,2726.9,0.73339]
[1739408727959,0.73334,2727.1,2726.9,0.73338]
[1739408728153,1.32473005,2727.2,2726.9,0.73338]
[1739408728354,0.73335,2727.1,2726.9,0.73338]
[1739408729663,0.59140005,2727.2,2726.9,0.73338]
[1739408729957,1.32473005,2727.2,2726.9,0.73338]
[1739408730159,0.59140005,2727.2,2726.7,0.00550005]
[1739408730358,1.32473005,2727.2,2726.9,0.73338]
[1739408730863,0.59140005,2727.2,2726.7,0.00550005]
[1739408731055,0.59140005,2727.2,2726.8,0.73341]
[1739408731360,1.32472005,2727.2,2726.9,0.73337]
[1739408731563,0.59140005,2727.2,2726.7,0.00550005]
[1739408731857,1.32471005,2727.2,2726.9,0.73337]
[1739408732054,0.73335,2727.1,2726.7,0.00550005]
[1739408732261,0.73335,2727.1,2726.8,0.73341]
[1739408732461,0.59140005,2727.2,2726.7,0.00550005]
[1739408732863,1.32472005,2727.2,2726.9,0.73338]
[1739408733663,0.59140005,2727.2,2726.7,0.55810005]
[1739408733863,0.73334,2727.1,2726.7,1.29152005]
[1739408734162,0.59140005,2727.2,2726.7,0.55810005]
[1739408734560,0.73335,2727.1,2726.8,0.7334]
[1739408734755,0.73335,2727.1,2726.9,0.73339]
[1739408734957,0.59140005,2727.2,2726.9,0.73339]
[1739408735464,1.32474005,2727.2,2726.9,0.73339]
[1739408736067,0.59140005,2727.2,2726.9,0.73339]
[1739408736367,1.32472005,2727.2,2726.9,0.73339]
[1739408736567,0.73335,2727.1,2726.8,0.7334]
[1739408736965,0.59140005,2727.2,2727.0,0.73335]
[1739408737268,0.59140005,2727.2,2726.7,0.55810005]
[1739408737464,0.59140005,2727.2,2727.1,0.73334]
[1739408737769,2.25540005,2727.2,2727.1,0.73334]
[1739408738668,1.66950005,2727.2,2727.1,0.73334]
[1739408739375,6.37389645,2728.3,2727.1,6.0]
[1739408739566,1.31119,2728.1,2727.8,0.73315]
[1739408739868,1.31119,2728.1,2727.9,0.73311]
[1739408739869,0.5781,2728.1,2727.9,0.73311]
[1739408740565,0.5781,2728.1,2727.9,40.8]
[1739408740873,0.5781,2728.1,2728.0,0.7331]
[1739408741062,0.5781,2728.1,2727.9,40.8]
[1739408741262,0.5781,2728.1,2727.9,41.53311]
[1739408741463,1.31119,2728.1,2727.9,40.8]
[1739408742070,1.31119,2728.1,2727.8,0.73313]
[1739408742469,0.5781,2728.1,2728.0,0.7331]
[1739408742666,0.5781,2728.1,2727.8,40.8]
[1739408742871,0.5781,2728.1,2728.0,0.7331]
[1739408743571,0.5781,2728.1,2727.9,0.73311]
[1739408743966,0.5781,2728.1,2727.8,40.8]
[1739408744163,0.5781,2728.1,2727.9,0.73311]
[1739408744676,0.5781,2728.1,2728.0,0.7331]
[1739408744869,3.21330005,2728.3,2728.1,0.73306]
[1739408745271,3.94632005,2728.3,2728.0,0.73308]
[1739408745575,0.00550005,2728.3,2728.1,0.73305]
[1739408745770,0.00550005,2728.3,2728.2,0.73304]
[1739408747474,0.00550005,2728.3,2728.2,1.32974]
[1739408747671,0.00550005,2728.3,2728.2,1.88624]
[1739408748176,0.00550005,2728.3,2728.2,2.43314]
[1739408750074,0.73852005,2728.3,2728.2,0.5565]
[1739408750276,0.00550005,2728.3,2728.2,1.28954]
[1739408750879,0.00550005,2728.3,2728.2,1.82834]
[1739408751768,0.00550005,2728.3,2728.2,5.03614]
[1739408751971,0.5423,2728.7,2728.2,4.3031]
[1739408752173,0.73287,2728.9,2728.8,0.73288]
[1739408752378,0.7329,2728.8,2728.7,0.7329]
[1739408752972,0.73287,2728.9,2728.8,0.73288]
[1739408753281,3.2078,2729.0,2728.9,1.31316]
[1739408753575,0.00550005,2729.1,2729.0,0.73283]
[1739408755178,0.00550005,2729.1,2729.0,41.53283]
[1739408756372,0.00550005,2729.1,2729.0,40.8]
[1739408756572,0.73830005,2729.1,2729.0,40.8]
[1739408756979,0.00550005,2729.1,2729.0,40.8]
[1739408757174,0.00550005,2729.1,2729.0,41.53283]
[1739408759180,0.00550005,2729.1,2729.0,40.8]
[1739408759375,0.00550005,2729.1,2729.0,41.53283]
[1739408760085,0.00550005,2729.1,2729.0,0.73283]
[1739408760475,0.00550005,2729.1,2729.0,41.53283]
[1739408761373,0.00550005,2729.1,2729.0,44.69892645]
[1739408762377,3.2078,2729.6,2729.5,0.7327]
[1739408762878,3.2078,2729.6,2729.3,3.16609645]
[1739408763085,3.94048,2729.6,2729.5,0.7327]
[1739408763284,3.2078,2729.6,2729.5,0.7327]
[1739408763682,0.00550005,2729.8,2729.7,0.73264]
[1739408763981,3.2078,2730.2,2730.1,0.73253]
[1739408764180,3.2078,2730.2,2730.0,0.73255]
[1739408764385,3.2078,2730.2,2730.1,0.5494]
[1739408764582,3.94031,2730.2,2730.1,0.5494]
[1739408765084,3.2078,2730.2,2730.1,0.5494]
[1739408765688,2.2217,2730.3,2730.2,0.73251]
[1739408765982,0.5597,2730.3,2730.2,0.73251]
[1739408766186,0.00547971,2730.4,2730.3,0.73248]
[1739408766379,0.00547971,2730.4,2730.3,3.89857645]
[1739408766982,0.00547971,2730.4,2730.3,44.69857645]
[1739408769686,0.00547971,2730.4,2730.1,0.5494]
[1739408769880,0.7325,2730.3,2730.0,0.73256]
[1739408770083,1.29341,2730.2,2730.0,0.73256]
[1739408770285,0.5609,2730.2,2730.0,0.73256]
[1739408770790,1.29342,2730.2,2730.0,0.73256]
[1739408770988,0.5609,2730.2,2730.0,0.73256]
[1739408771391,0.5609,2730.2,2729.9,0.00550005]
[1739408771585,1.29341,2730.2,2730.0,0.73255]
[1739408772291,0.5609,2730.2,2730.1,0.73253]
[1739408773783,0.00547971,2730.4,2730.0,3.16609645]
[1739408773992,0.00547971,2730.4,2730.3,3.89857645]
[1739408774181,0.00547971,2730.4,2730.1,0.5548]
[1739408774385,0.73249,2730.3,2730.1,1.28732]
[1739408774590,0.73249,2730.3,2730.1,0.73252]
[1739408774790,0.5437,2730.2,2730.1,0.73252]
[1739408774988,0.5437,2730.2,2730.0,3.16609645]
[1739408775190,0.5437,2730.2,2730.1,0.73253]
[1739408775394,3.7515,2730.2,2729.9,0.00550005]
[1739408775586,0.73253,2730.1,2730.0,40.8]
[1739408776198,0.5437,2730.2,2730.1,0.73253]
[1739408776991,1.66647971,2730.4,2730.0,40.8]
[1739408777296,1.66647971,2730.4,2730.3,0.73248]
[1739408777488,0.00547971,2730.4,2730.3,0.73248]
[1739408777989,0.00547971,2730.4,2730.3,3.89857645]
[1739408778595,0.00547971,2730.4,2730.3,4.99727645]
[1739408781495,2.7996,2730.9,2730.8,0.73235]
[1739408782093,1.1386,2730.9,2730.8,0.73235]
[1739408782406,1.1386,2730.9,2730.6,3.16609645]
[1739408782699,1.1386,2730.9,2730.3,1.0987]
[1739408782700,0.73244,2730.5,2730.3,4.99726645]
[1739408782902,3.2078,2730.7,2730.3,4.26479645]
[1739408783202,3.2078,2730.7,2730.3,4.99727645]
[1739408783203,0.73245,2730.5,2730.3,4.99727645]
[1739408783603,0.73242,2730.6,2730.4,0.73244]
[1739408784398,3.94019,2730.7,2730.5,0.73241]
[1739408784597,3.94019,2730.7,2730.3,4.26479645]
[1739408784900,3.2078,2730.7,2730.6,3.89849645]
[1739408786198,0.5525,2730.9,2730.8,0.73235]
[1739408786402,0.5525,2730.9,2730.7,0.73235]
[1739408786602,0.73235,2730.8,2730.7,0.73235]
[1739408786802,0.73235,2730.8,2730.6,3.16609645]
[1739408787100,0.5525,2730.9,2730.7,0.73236]
[1739408787101,1.28483,2730.9,2730.7,0.73236]
[1739408787408,1.28483,2730.9,2730.7,0.73237]
[1739408787615,0.5525,2730.9,2730.8,0.73235]
[1739408789802,0.5525,2730.9,2730.6,6.37389645]
[1739408790014,0.5525,2730.9,2730.7,0.73237]
[1739408790223,0.5525,2730.9,2730.8,0.73235]
[1739408791014,0.5525,2730.9,2730.6,6.37389645]
[1739408791322,0.5525,2730.9,2730.8,0.73235]
[1739408793115,0.579,2731.2,2730.6,6.93589645]
[1739408793322,0.579,2731.2,2731.1,3.89836645]
[1739408793622,0.5611,2731.3,2731.2,0.73224]
[1739408794017,0.5611,2731.3,2731.2,41.53224]
[1739408795320,0.5936,2731.6,2731.5,0.73216]
[1739408795521,1.1546,2731.6,2731.5,0.73216]
[1739408795718,0.73216,2731.5,2731.4,3.16609645]
[1739408795911,0.73219,2731.4,2731.3,0.00550005]
[1739408796116,0.73232,2730.9,2730.8,3.89844645]
[1739408796317,0.73231,2731.0,2730.8,0.73233]
[1739408796517,0.5923,2730.9,2730.8,0.73233]
[1739408796924,0.73235,2730.8,2730.7,3.16609645]
[1739408797126,0.5923,2730.9,2730.5,3.2078]
[1739408797323,0.5617,2730.8,2730.5,3.21330005]
[1739408797621,0.7324,2730.6,2730.5,0.00550005]
[1739408798027,4.8678,2730.7,2730.2,40.8]
[1739408798225,0.73247,2730.4,2730.2,40.8]
[1739408798427,1.154,2730.3,2729.9,3.94037]
[1739408798727,1.154,2730.3,2730.1,3.16609645]
[1739408798728,1.66,2730.3,2730.1,3.16609645]
[1739408799026,1.66,2730.3,2730.2,0.73251]
[1739408799220,1.66,2730.5,2730.3,0.73246]
[1739408799728,1.66,2730.5,2730.1,3.16609645]
[1739408799729,1.66,2730.5,2730.1,3.72139645]
[1739408799924,2.39244,2730.5,2730.1,4.45391645]
[1739408800324,2.39244,2730.5,2730.1,1.28782]
[1739408800528,3.2078,2730.3,2729.9,0.00550005]
[1739408800721,0.73251,2730.2,2729.9,0.00550005]
[1739408800926,0.5825,2730.4,2729.9,0.00550005]
[1739408801126,0.5708,2730.1,2729.9,41.53808005]
[1739408801623,0.5708,2730.1,2730.0,0.73256]
[1739408801829,0.5953,2730.4,2730.3,0.73247]
[1739408802326,0.5953,2730.4,2730.1,3.16609645]
[1739408802528,0.5953,2730.4,2730.1,5.04011645]
[1739408803120,0.5953,2730.4,2730.1,3.73589645]
[1739408803319,0.7325,2730.3,2730.1,3.73589645]
[1739408803521,0.7325,2730.3,2730.1,3.16609645]
[1739408803825,0.5953,2730.4,2730.0,0.73256]
[1739408804028,2.98777,2730.4,2729.9,44.01330005]
[1739408804231,2.98777,2730.4,2730.1,0.73252]
[1739408805731,2.2553,2730.4,2729.9,44.01330005]
[1739408805932,0.73249,2730.3,2730.0,0.73256]
[1739408806130,2.2553,2730.4,2729.9,40.80550005]
[1739408806330,0.5919,2730.2,2729.9,40.80550005]
[1739408806934,1.32442,2730.2,2729.9,41.53808005]
[1739408807229,0.5919,2730.2,2730.0,0.73256]
[1739408808426,0.5919,2730.2,2730.1,0.73253]
[1739408808726,0.5953,2730.4,2730.1,3.16609645]
[1739408808930,0.5953,2730.4,2730.3,0.73248]
[1739408810331,3.2078,2730.5,2730.1,3.71309645]
[1739408810527,3.2078,2730.5,2730.4,3.89854645]
[1739408811327,0.5428,2730.8,2730.4,3.16609645]
[1739408811530,0.5428,2730.8,2730.7,0.73237]
[1739408812230,2.39782005,2731.0,2730.8,0.73234]
[1739408812430,1.66550005,2731.0,2730.9,0.73232]
[1739408812733,0.73233,2730.9,2730.7,0.73236]
[1739408812933,2.39781005,2731.0,2730.7,0.73235]
[1739408813329,2.39781005,2731.0,2730.6,0.7324]
[1739408813536,2.39781005,2731.0,2730.5,1.1366]
[1739408813829,2.39779005,2731.0,2730.8,0.73233]
[1739408814439,0.73233,2730.9,2730.6,0.73237]
[1739408814735,1.66550005,2731.0,2730.5,1.1366]
[1739408814934,0.73233,2730.9,2730.6,0.73238]
[1739408815442,0.73233,2730.9,2730.5,1.1366]
[1739408815637,0.73233,2730.9,2730.7,0.73237]
[1739408815933,0.73233,2730.9,2730.5,1.1366]
[1739408815934,1.66550005,2731.0,2730.5,1.1366]
[1739408816135,1.66550005,2731.0,2730.8,0.73233]
[1739408816632,0.00550005,2731.0,2730.9,0.73232]
[1739408817336,0.00550005,2731.0,2730.6,0.5479]
[1739408817637,0.73782005,2731.0,2730.7,0.73236]
[1739408818132,0.00550005,2731.0,2730.8,0.73232]
[1739408818436,0.00550005,2731.0,2730.9,0.73232]
[1739408818829,0.73780005,2731.0,2730.9,40.8]
[1739408819030,0.00550005,2731.0,2730.7,3.16609645]
[1739408819229,0.73235,2730.8,2730.6,1.28029]
[1739408819629,0.73235,2730.8,2730.7,40.8]
[1739408820031,0.00550005,2731.0,2730.7,40.8]
[1739408820538,0.73237,2730.7,2730.6,0.5479]
[1739408820729,0.73237,2730.8,2730.6,1.2803]
[1739408820931,0.73237,2730.7,2730.6,0.5479]
[1739408821330,0.73237,2730.7,2730.5,40.8]
[1739408821530,0.5469,2730.6,2730.5,41.53243]
[1739408822334,0.5469,2730.6,2730.5,40.8]
[1739408822531,1.2793,2730.6,2730.5,40.8]
[1739408823238,0.5469,2730.6,2730.5,40.8]
[1739408823543,0.5469,2730.6,2730.5,41.53243]
[1739408823741,1.2793,2730.6,2730.5,40.8]
[1739408825144,0.5469,2730.6,2730.5,40.8]
[1739408825336,0.5469,2730.6,2730.5,41.53243]
[1739408828334,0.00550005,2731.0,2730.9,0.73232]
[1739408828743,0.00550005,2731.0,2730.7,3.16609645]
[1739408829036,0.7324,2730.6,2730.5,40.8]
[1739408830041,0.7324,2730.6,2730.5,0.73243]
[1739408830042,1.659,2730.6,2730.5,0.73243]
[1739408830442,1.659,2730.6,2730.4,0.73244]
[1739408831038,1.659,2730.6,2730.3,41.3906]
[1739408831039,1.659,2730.6,2730.5,0.73243]
[1739408831945,0.5879,2730.7,2730.3,41.3906]
[1739408832139,0.5879,2730.7,2730.6,0.7324]
[1739408832535,0.5879,2730.7,2730.4,3.2078]
[1739408832536,0.00550005,2731.0,2730.9,0.73232]
[1739408832740,1.66450005,2731.0,2730.9,0.73232]
[1739408833041,0.00550005,2731.0,2730.9,0.73232]
[1739408836550,3.2078,2731.6,2730.9,0.73232]
[1739408836748,3.2078,2731.6,2731.5,0.73216]
[1739408836948,0.367,2732.8,2731.5,6.37389645]
[1739408837138,0.367,2732.8,2732.1,3.16609645]
[1739408837139,0.5535,2732.5,2732.1,3.16609645]
[1739408837338,0.5535,2732.5,2731.9,3.2078]
[1739408837339,0.5535,2732.5,2732.4,3.89801645]
[1739408837538,0.5535,2732.5,2732.4,44.69801645]
[1739408838040,1.28539,2732.5,2732.4,43.96609645]
[1739408838248,0.732,2732.1,2732.0,0.00548958]
[1739408838953,0.732,2732.1,2731.2,3.16609645]
[1739408838954,9.75769645,2732.1,2731.2,3.16609645]
[1739408839249,0.73215,2731.6,2731.2,0.73223]
[1739408839450,0.73215,2731.6,2731.3,0.7322]
[1739408839451,0.5787,2731.5,2731.3,0.7322]
[1739408839650,0.5787,2731.5,2731.1,0.556]
[1739408839841,0.5787,2731.5,2731.2,0.73222]
[1739408840043,0.5787,2731.5,2731.3,0.7322]
[1739408840244,0.5787,2731.5,2731.4,0.73219]
[1739408840951,1.659,2731.8,2731.6,0.73212]
[1739408841249,1.659,2731.8,2731.2,3.16609645]
[1739408841848,1.659,2731.8,2731.3,3.2078]
[1739408842053,1.659,2731.8,2731.6,0.73212]
[1739408842255,1.83034,2731.6,2731.0,0.00548958]
[1739408842447,1.659,2731.8,2731.0,0.00548958]
[1739408842448,3.16609645,2731.3,2731.0,0.00548958]
[1739408842651,0.73227,2731.1,2731.0,0.00548958]
[1739408843055,6.74135,2731.2,2731.0,0.00548958]
[1739408843356,0.73227,2731.1,2731.0,0.00548958]
[1739408843553,6.0091,2731.2,2731.0,0.00548958]
[1739408844258,0.73227,2731.1,2731.0,0.00548958]
[1739408844851,6.74137,2731.2,2731.0,0.00548958]
[1739408845252,0.73227,2731.1,2731.0,0.00548958]
[1739408846360,6.74135,2731.2,2731.0,0.00548958]
[1739408846553,0.73227,2731.1,2731.0,0.00548958]
[1739408847261,1.659,2731.1,2731.0,0.00548958]
[1739408848763,0.73219,2731.4,2731.1,0.73226]
[1739408848964,1.659,2731.3,2731.1,0.73226]
[1739408849260,1.659,2731.3,2731.0,0.73775958]
[1739408849563,1.659,2731.3,2731.0,0.00548958]
[1739408850060,1.659,2731.3,2731.0,0.73776958]
[1739408850248,1.659,2731.3,2731.0,0.00548958]
[1739408850453,1.659,2731.3,2731.1,0.73226]
[1739408851057,1.659,2731.3,2731.0,0.73776958]
[1739408851255,2.39121,2731.3,2731.0,0.73776958]
[1739408851572,0.73227,2731.1,2731.0,0.00548958]
[1739408863374,1.27677,2731.1,2731.0,0.00548958]
[1739408867380,2.93577,2731.1,2731.0,0.00548958]
[1739408872479,2.93577,2731.1,2731.0,0.00350364]
[1739408875983,6.14357,2731.1,2731.0,0.00350364]
[1739408883988,6.14357,2731.1,2731.0,0.00223617]
[1739408884586,11.4113,2731.1,2730.0,3.2078]
[1739408884788,0.73251,2730.2,2730.0,3.7501]
[1739408885884,2.39049,2730.3,2730.0,4.48265]
[1739408886195,2.39048,2730.3,2730.0,4.48265]
[1739408886388,2.39048,2730.3,2730.0,3.7501]
[1739408886591,2.39048,2730.3,2730.0,4.48265]
[1739408886785,1.658,2730.3,2730.0,3.7501]
[1739408886989,0.73252,2730.2,2730.0,3.7501]
[1739408887195,2.3905,2730.3,2730.0,3.7501]
[1739408887597,2.39049,2730.3,2730.0,4.48266]
[1739408888296,1.658,2730.3,2730.0,3.7501]
[1739408888691,2.3905,2730.3,2730.0,4.48265]
[1739408889798,1.658,2730.3,2730.2,3.89860645]
[1739408890594,0.00548958,2730.4,2730.2,43.96609645]
[1739408890798,0.73795958,2730.4,2730.2,44.69859645]
[1739408891001,0.73248,2730.3,2730.2,44.69859645]
[1739408891201,0.73248,2730.3,2730.2,43.96609645]
[1739408892000,0.73248,2730.3,2730.0,4.48265]
[1739408892495,0.73248,2730.3,2730.1,0.73253]
[1739408893301,0.00548958,2730.4,2730.0,44.5501]
[1739408893704,0.73252,2730.2,2730.0,45.28264]
[1739408893903,0.73252,2730.2,2730.0,44.5501]
[1739408894103,0.00548958,2730.4,2730.0,44.5501]
[1739408894403,0.7325,2730.3,2730.1,0.73252]
[1739408894992,0.00548958,2730.4,2730.1,0.73252]
[1739408895197,0.73251,2730.2,2730.1,0.73252]
[1739408895599,0.73251,2730.2,2730.0,44.5501]
[1739408895801,0.73251,2730.2,2730.0,45.28265]
[1739408895999,0.73249,2730.3,2730.1,0.73252]
[1739408896600,0.73252,2730.2,2730.0,45.28263]
[1739408897305,0.00548958,2730.4,2730.3,0.73248]
[1739408897503,0.00548958,2730.4,2730.0,44.5501]
[1739408897696,0.73249,2730.3,2730.1,0.73251]
[1739408897894,0.73253,2730.1,2730.0,44.5501]
[1739408898105,0.73253,2730.1,2730.0,0.5423]
[1739408898703,1.658,2730.2,2730.0,0.5423]
[1739408898916,1.658,2730.2,2730.1,0.73253]
[1739408899908,2.39052,2730.2,2730.0,0.5423]
[1739408900103,1.658,2730.2,2730.1,0.73253]
[1739408900303,1.658,2730.2,2730.0,0.5423]
[1739408900507,2.39052,2730.2,2730.0,1.27485]
[1739408901509,1.66348958,2730.4,2730.3,0.73248]
[1739408901704,1.66348958,2730.4,2730.0,0.5423]
[1739408901905,2.39594958,2730.4,2730.0,0.5423]
[1739408902101,1.66348958,2730.4,2730.2,0.73248]
[1739408902414,0.73248,2730.3,2730.1,0.73252]
[1739408902707,1.66348958,2730.4,2730.0,0.5423]
[1739408902908,1.66348958,2730.4,2730.3,0.73248]
[1739408903309,0.00548958,2730.4,2730.3,0.73248]
[1739408903607,0.00548958,2730.4,2730.1,0.73253]
[1739408903913,0.73253,2730.1,2730.0,1.27486]
[1739408904211,3.79298958,2730.4,2730.1,0.73253]
[1739408904399,0.73249,2730.3,2730.1,0.73251]
[1739408904606,2.39049,2730.3,2730.1,0.73253]
[1739408904804,2.39049,2730.3,2730.2,0.73251]
[1739408905409,2.39049,2730.3,2730.0,0.5423]
[1739408905603,1.658,2730.3,2730.0,0.5423]
[1739408905804,1.658,2730.3,2730.2,0.73251]
[1739408907409,2.39049,2730.3,2730.1,0.73252]
[1739408907615,1.658,2730.3,2730.0,0.5423]
[1739408907915,2.39048,2730.3,2730.2,0.73251]
[1739408908215,2.39048,2730.3,2730.1,0.73252]
[1739408908616,1.658,2730.3,2730.0,1.27486]
[1739408908813,1.30403,2730.2,2730.0,1.27486]
[1739408909018,0.5715,2730.2,2729.9,3.2078]
[1739408909209,0.73256,2730.0,2729.9,3.2078]
[1739408909711,0.73256,2730.0,2729.8,0.00548958]
[1739408909902,0.73259,2729.9,2729.8,0.00548958]
[1739408910106,0.5852,2730.1,2729.8,0.00548958]
[1739408910314,0.5852,2730.1,2729.8,0.73807958]
[1739408910512,0.73256,2730.0,2729.8,0.00548958]
[1739408910913,1.31774,2730.1,2729.9,0.73259]
[1739408911114,0.5852,2730.1,2729.9,0.73257]
[1739408911414,1.31774,2730.1,2729.9,0.73257]
[1739408913120,1.658,2730.0,2729.9,0.73259]
[1739408913718,3.7793,2730.2,2729.9,3.16609645]
[1739408913925,3.2078,2730.2,2730.1,0.73253]
[1739408914412,1.658,2730.3,2730.1,1.32942]
[1739408914612,0.73251,2730.2,2730.1,0.5969]
[1739408914811,0.73253,2730.1,2730.0,40.8]
[1739408915016,1.1827,2730.1,2729.8,0.00548958]
[1739408915313,1.91525,2730.1,2729.8,0.73808958]
[1739408916418,1.91525,2730.1,2729.8,0.73807958]
[1739408916610,0.73257,2730.0,2729.8,0.73807958]
[1739408917921,1.1827,2730.1,2729.8,0.73807958]
[1739408918308,1.1827,2730.1,2729.8,0.00548958]
[1739408918512,0.00548958,2730.4,2729.9,3.16609645]
[1739408918714,0.55388958,2730.4,2730.3,0.73248]
[1739408919018,2.94435958,2730.4,2730.2,0.73249]
[1739408919216,0.73249,2730.3,2730.1,0.73252]
[1739408919621,2.21188958,2730.4,2729.9,4.27149645]
[1739408919916,2.21188958,2730.4,2730.3,0.73248]
[1739408920717,1.658,2731.2,2730.5,1.83106]
[1739408921018,0.5566,2731.2,2731.0,0.73229]
[1739408921219,2.2146,2731.2,2731.0,0.73229]
[1739408921717,2.2146,2731.2,2730.8,40.8]
[1739408921718,2.94685,2731.2,2730.9,0.7323]
[1739408921918,2.2146,2731.2,2730.9,0.7323]
[1739408922121,2.94684,2731.2,2730.9,0.7323]
[1739408922724,2.2146,2731.2,2731.0,0.73229]
[1739408923118,2.2146,2731.2,2731.1,0.73227]
[1739408923314,2.2146,2731.2,2730.8,40.8]
[1739408923520,2.94684,2731.2,2730.9,0.7323]
[1739408924018,2.2146,2731.2,2730.9,0.7323]
[1739408924216,2.2146,2731.2,2730.7,3.16609645]
[1739408924417,0.73227,2731.1,2730.8,0.73233]
[1739408924617,2.2146,2731.2,2730.7,0.73237]
[1739408924813,0.73227,2731.1,2730.7,0.73237]
[1739408925023,0.7323,2731.0,2730.7,0.73237]
[1739408925222,2.2146,2731.2,2730.6,3.7798]
[1739408925425,0.73229,2731.0,2730.7,0.73236]
[1739408925627,3.2078,2731.1,2730.6,3.7798]
[1739408925816,0.73236,2730.8,2730.6,3.7798]
[1739408926619,0.73234,2730.9,2730.6,4.5122]
[1739408926923,3.2078,2731.1,2730.6,3.2078]
[1739408927120,3.2078,2730.8,2730.2,0.5946]
[1739408927326,1.657,2730.7,2730.2,0.5946]
[1739408927523,3.2078,2730.5,2730.3,0.73247]
[1739408928018,3.2078,2730.5,2730.2,0.5946]
[1739408928223,3.2078,2730.5,2730.4,0.73245]
[1739408928421,0.5617,2730.6,2730.2,0.5946]
[1739408928618,0.5617,2730.6,2730.4,0.73244]
[1739408928919,0.5617,2730.6,2730.2,0.5946]
[1739408929319,0.73243,2730.5,2730.2,1.32709]
[1739408929620,1.29412,2730.6,2730.2,1.32709]
[1739408929826,0.5617,2730.6,2730.2,0.5946]
[1739408930123,0.5617,2730.6,2730.4,0.73245]
[1739408931322,0.73247,2730.4,2730.1,0.73252]
[1739408931730,0.73247,2730.4,2729.9,6.2038]
[1739408931731,3.2078,2730.5,2729.9,6.2038]
[1739408932025,0.73248,2730.3,2729.9,3.2078]
[1739408932215,0.73251,2730.2,2729.9,3.94038]
[1739408932420,2.2012,2730.2,2729.9,3.2078]
[1739408932620,2.2012,2730.2,2730.0,0.73255]
[1739408933230,2.2012,2730.2,2730.1,0.73253]
[1739408933730,2.2012,2730.2,2729.9,3.2078]
[1739408933933,2.2012,2730.2,2730.0,0.73255]
[1739408934230,2.2012,2730.2,2730.0,0.73254]
[1739408934426,2.2012,2730.2,2729.9,3.2078]
[1739408934631,1.29412,2730.6,2729.9,3.2078]
[1739408934831,1.657,2730.5,2729.9,5.03923]
[1739408935032,2.38943,2730.5,2730.3,0.73245]
[1739408935426,0.5617,2730.6,2729.9,5.03923]
[1739408935622,2.38944,2730.5,2730.3,0.73246]
[1739408937732,0.5819,2730.9,2730.3,0.73246]
[1739408937733,3.2078,2731.1,2730.4,3.16609645]
[1739408937933,3.21328958,2731.4,2730.9,3.2078]
[1739408938235,1.657,2731.3,2731.0,3.71219645]
[1739408938439,1.657,2731.3,2731.1,0.73226]
[1739408938635,2.38923,2731.3,2731.0,4.44447645]
[1739408938834,0.73225,2731.2,2731.0,1.27839]
[1739408939040,1.657,2731.3,2731.0,0.5461]
[1739408939241,0.73227,2731.1,2731.0,0.5461]
[1739408939739,1.657,2731.3,2731.0,0.5461]
[1739408940039,2.38923,2731.3,2731.0,1.27838]
[1739408940235,1.657,2731.3,2731.0,0.5461]
[1739408940440,0.73225,2731.2,2731.0,0.5461]
[1739408940639,2.38922,2731.3,2731.0,1.27838]
[1739408943035,2.38922,2731.3,2731.0,0.5461]
[1739408943240,1.657,2731.3,2731.0,0.5461]
[1739408943539,1.657,2731.3,2731.2,0.73224]
[1739408943743,1.657,2731.3,2731.0,0.5461]
[1739408944132,3.80328958,2731.4,2731.0,0.5461]
[1739408944331,4.87028958,2731.4,2731.3,0.73221]
[1739408944938,0.73223,2731.3,2731.1,0.73225]
[1739408945138,4.87028958,2731.4,2731.0,4.86819645]
[1739408945338,4.87028958,2731.4,2731.2,0.73222]
[1739408946142,4.87028958,2731.4,2731.0,4.86819645]
[1739408946538,4.87028958,2731.4,2731.3,0.73221]
[1739408947134,0.5539,2731.9,2731.3,3.16609645]
[1739408947340,1.656,2732.0,2731.8,0.73206]
[1739408947844,1.656,2732.0,2731.7,1.29339]
[1739408947845,0.73206,2731.9,2731.7,1.29339]
[1739408948041,1.656,2732.0,2731.7,0.5613]
[1739408948242,2.38804,2732.0,2731.8,0.73207]
[1739408948552,0.73204,2732.0,2731.9,40.8]
[1739408948748,1.656,2732.0,2731.9,40.8]
[1739408948949,1.656,2732.0,2731.9,41.53205]
[1739408949548,1.656,2732.0,2731.9,40.8]
[1739408949748,3.75366516,2732.1,2731.9,40.8]
[1739408949949,6.14167516,2732.1,2731.9,41.53204]
[1739408950944,5.40966516,2732.1,2731.9,40.8]
[1739408951146,0.73208,2731.8,2731.7,0.5613]
[1739408951746,5.40966516,2732.1,2731.7,0.5613]
[1739408951946,5.40966516,2732.1,2731.7,1.29339]
[1739408952251,5.40966516,2732.1,2731.7,0.5613]
[1739408952447,0.73205,2732.0,2731.7,1.29339]
[1739408953054,5.40966516,2732.1,2731.7,0.5613]
[1739408953453,0.73203,2732.0,2731.7,1.29338]
[1739408954153,5.40966516,2732.1,2731.7,0.5613]
[1739408954348,0.73203,2732.0,2731.7,0.5613]
[1739408954553,0.73204,2732.0,2731.8,0.73207]
[1739408954750,5.40966516,2732.1,2731.7,0.5613]
[1739408954954,5.40966516,2732.1,2731.7,41.3613]
[1739408955145,3.2078,2732.6,2732.0,3.16609645]
[1739408955350,3.2078,2732.9,2732.7,0.73184]
[1739408955751,3.2078,2732.9,2732.6,0.5905]
[1739408955954,3.2078,2732.9,2732.6,1.32234]
[1739408956261,3.2078,2732.9,2732.6,0.5905]
[1739408956551,3.93959,2732.9,2732.6,0.5905]